[Event "5th Shenzhen Longgang Masters 2024"]
[Site "Shengzhen"]
[Date "2024.03.04"]
[Round "5.3"]
[White "Yu, Yangyi"]
[Black "Erigaisi Arjun"]
[Result "1/2-1/2"]
[ECO "B48"]
[WhiteElo "2720"]
[BlackElo "2738"]
[Annotator "TA"]
[PlyCount "49"]
[EventDate "2024.02.28"]
[EventType "tourn"]
[EventCountry "CHN"]
[SourceTitle "playchess.com"]
[Source "ChessBase"]
[SourceQuality "1"]
[TimeControl "40/5400+30:1800+30"]

{[%evp 14,49,33,27,23,-29,-47,-37,-25,-23,-22,-14,-7,-22,0,0,0,-25,-12,0,0,0,-20,-18,0,0,0,0,0,0,0,0,0,0,0,0,0,0]} 1. e4 {[%emt 0:00:03]} c5 {[%emt 0:00:44]} 2. Nf3 {[%emt 0:00:12]} e6 {[%emt 0:00:05]} 3. d4 {[%emt 0:02:22]} cxd4 {[%emt 0:00:09]} 4. Nxd4 {[%emt 0:00:05]} Nc6 {[%emt 0:00:05]} 5. Nc3 {[%emt 0:00:16]} Qc7 {[%emt 0:00:15]} 6. Be3 {[%emt 0:01:13]} a6 {[%emt 0:00:16]} 7. Qd2 {[%emt 0:04:44]} Nf6 {[%emt 0:00:31][%cal Bg8f6,Bf6g4,Bg4e5,Be5f3][%mdl 32]} 8. O-O-O {[%emt 0:00:15]} Be7 {[%emt 0:01:28] [#]} 9. g4 {[%emt 0:00:13]} Nxg4 $11 {[%emt 0:18:58]} 10. Bf4 {[%emt 0:00:31]} Nge5 $1 {[%emt 0:00:07] Black is slightly better.} 11. Nxc6 {[%emt 0:00:28]} bxc6 {[%emt 0:00:08]} 12. Rg1 {[%emt 0:02:35] [#]} g5 {[%emt 0:03:45]} 13. Rxg5 {[%emt 0:04:24]} (13. Bxg5 Nf3 14. Qe3 (14. Bf4 $2 e5 $19) 14... Nxg1 $17) 13... Bxg5 {[%emt 0:00:51]} 14. Bxg5 {[%emt 0:00:08]} Nf3 {[%emt 0:04:22][%csl LRd2,LRh2]} 15. Qe3 {[%emt 0:01:29]} Nxg5 {[%emt 0:00:07]} 16. Qxg5 {[%emt 0:00:08] And now e5 would win. The position is equal.} d6 {[%emt 0:07:23]} 17. Qg3 {[%emt 0:01:22]} ({Much weaker is} 17. Qg7 Rf8 $15) (17. Qg7 $5 Rf8 $8 18. Qg3 $11 (18. Qxh7 Bb7 $17)) 17... e5 {[%emt 0:05:14]} 18. f4 {[%emt 0:01:12][%cal Bf2f4,Bf4f5][%mdl 32]} Qe7 {[%emt 0:03:01]} 19. Qg7 {[%emt 0:15:23]} Rf8 {[%emt 0:02:31]} 20. f5 {[%emt 0:01:26]} (20. Qxh7 $2 {too greedy.} Qf6 (20... exf4 21. Qh6 $17) 21. fxe5 dxe5 $19) 20... f6 {[%emt 0:03:24]} 21. Qg1 {[%emt 0:01:19]} Rf7 {[%emt 0:02:37]} 22. Qg8+ {[%emt 0:07:26]} Rf8 {[%emt 0:08:04]} 23. Qg1 {[%emt 0:03:46]} Rf7 $1 {[%emt 0:02:51]} 24. Qg8+ {[%emt 0:00:09]} Rf8 {[%emt 0:00:06]} 25. Qg1 {[%emt 0:01:45] Weighted Error Value: White=0.04 (flawless) /Black=0.02 (flawless) .  Mistake:       	White=1     	---        OK:         	White=14    	Black=4      Best:        	---       	Black=2      Strong:       	---       	Black=2} 1/2-1/2

[Event "5th Shenzhen Longgang Masters 2024"]
[Site "Shengzhen"]
[Date "2024.03.04"]
[Round "5.4"]
[White "Artemiev, Vladislav"]
[Black "Dubov, Daniil"]
[Result "1/2-1/2"]
[ECO "C54"]
[WhiteElo "2711"]
[BlackElo "2708"]
[Annotator "TA"]
[PlyCount "61"]
[EventDate "2024.02.28"]
[EventType "tourn"]
[EventCountry "CHN"]
[SourceTitle "playchess.com"]
[Source "ChessBase"]
[SourceQuality "1"]
[TimeControl "40/5400+30:1800+30"]

{[%evp 11,61,12,31,24,22,9,38,41,48,67,53,52,41,40,37,60,47,39,30,32,35,34,43,49,57,12,8,8,12,15,21,15,9,14,16,0,0,0,4,0,0,0,0,0,0,0,0,0,0,0,0,0]} 1. e4 {[%emt 0:00:15]} e5 {[%emt 0:00:09]} 2. Nf3 {[%emt 0:00:38]} Nc6 {[%emt 0:00:07]} 3. Bc4 {[%emt 0:00:41]} Nf6 {[%emt 0:00:08]} 4. d3 {[%emt 0:00:39]} Bc5 {[%emt 0:00:08]} 5. c3 {[%emt 0:11:08]} d6 {[%emt 0:00:15]} 6. O-O {[%emt 0:03:55]} a6 {[%emt 0:00:29]} 7. Re1 {[%emt 0:05:30]} O-O {[%emt 0:00:21]} 8. h3 {[%emt 0:15:11]} Na5 {[%emt 0:01:32]} 9. b4 {[%emt 0:01:17] White is slightly better.} Nxc4 {[%emt 0:00:10]} 10. bxc5 {[%emt 0:00:13]} Na5 {[%emt 0:00:05]} 11. cxd6 {[%emt 0:04:28]} cxd6 {[%emt 0:00:06]} 12. c4 {[%emt 0:04:42]} b5 {[%emt 0:00:13]} 13. cxb5 {[%emt 0:00:44]} axb5 {[%emt 0:00:06][%cal Ba6b5,Bb5b4][%mdl 32]} 14. Bg5 {[%emt 0:00:43]} b4 {[%emt 0:01:02] Prevents Nc3.} 15. Nbd2 {[%emt 0:09:25]} Nc6 {[%emt 0:00:53]} 16. Qc1 {[%emt 0:04:43]} Ra6 {[%emt 0:01:21]} 17. a3 {[%emt 0:01:42]} h6 {[%emt 0:05:22]} 18. Be3 {[%emt 0:06:33]} bxa3 {[%emt 0:06:15] The position is equal.} 19. Rxa3 {[%emt 0:00:26]} Rxa3 {[%emt 0:00:08]} 20. Qxa3 {[%emt 0:00:08]} Be6 {[%emt 0:00:07]} 21. Rc1 {[%emt 0:03:44]} Qd7 {[%emt 0:00:31]} 22. d4 {[%emt 0:00:20]} exd4 {[%emt 0:00:35]} 23. Bxd4 {[%emt 0:06:20]} Nxd4 {[%emt 0:02:23]} 24. Nxd4 {[%emt 0:00:19]} Re8 {[%emt 0:00:13]} 25. Rc6 {[%emt 0:07:13]} (25. Qd3 {simplifies} Rc8 26. Ra1 Qe7 27. Nxe6 Qxe6 28. Ra6) 25... Qb7 {[%emt 0:00:29]} 26. Qxd6 {[%emt 0:08:17]} Nxe4 $1 {[%emt 0:00:30]} 27. Nxe4 {[%emt 0:00:05] Excellent horsemanship.} Qb1+ {[%emt 0:00:04]} 28. Kh2 {[%emt 0:00:04]} Qxe4 {[%emt 0:00:07]} 29. Nxe6 {[%emt 0:00:31]} Rxe6 {[%emt 0:00:30]} 30. Qb8+ {[%emt 0:00:09]} Re8 {[%emt 0:00:17]} 31. Rc8 {[%emt 0:00:07] Weighted Error Value: White=0.05 (flawless) /Black=0.04 (flawless) .  Inaccurate:     	White=1     	Black=1      OK:         	White=9     	Black=10     Best:        	White=2     	Black=1      Strong:       	---       	Black=1} 1/2-1/2

[Event "5th Shenzhen Longgang Masters 2024"]
[Site "Shengzhen"]
[Date "2024.03.06"]
[Round "6.1"]
[White "Xu, Xiangyu"]
[Black "Dubov, Daniil"]
[Result "1-0"]
[ECO "D70"]
[WhiteElo "2623"]
[BlackElo "2708"]
[Annotator "TA"]
[PlyCount "91"]
[EventDate "2024.02.28"]
[EventType "tourn"]
[EventCountry "CHN"]
[SourceTitle "playchess.com"]
[Source "ChessBase"]
[SourceQuality "1"]
[TimeControl "40/5400+30:1800+30"]

{[%evp 26,91,19,4,11,8,16,19,2,8,15,8,17,27,73,0,0,-3,0,0,71,40,61,64,62,58,52,61,68,78,110,106,95,111,235,247,225,234,239,238,214,160,240,246,228,227,268,257,588,593,651,651,868,850,912,821,976,576,1277,1441,1630,1470,1283,1425,1495,1353,939,744]} 1. d4 {[%emt 0:00:05]} Nf6 {[%emt 0:00:10]} 2. c4 {[%emt 0:00:09]} g6 {[%emt 0:00:06]} 3. f3 {[%emt 0:00:44]} d5 {[%emt 0:01:49]} 4. cxd5 {[%emt 0:00:14]} Nxd5 {[%emt 0:00:08]} 5. e4 {[%emt 0:00:09]} Nb6 {[%emt 0:00:05]} 6. Nc3 {[%emt 0:00:11]} Bg7 {[%emt 0:00:11]} 7. Be3 {[%emt 0:00:09]} Nc6 {[%emt 0:00:14]} 8. d5 {[%emt 0:00:39] D70: Grünfeld: Unusual White 3rd moves (met by ...d5).} Ne5 {[%emt 0:00:36]} 9. f4 {[%emt 0:00:19]} Ng4 {[%emt 0:00:20]} 10. Bb5+ {[%emt 0:00:35]} c6 {[%emt 0:00:21]} 11. dxc6 {[%emt 0:00:16]} O-O {[%emt 0:00:24]} 12. Qxd8 {[%emt 0:01:17]} Rxd8 {[%emt 0:00:09]} 13. c7 {[%emt 0:00:16]} Rf8 {[%emt 0:00:36]} 14. Bc5 {[%emt 0:22:37]} Bxc3+ {[%emt 0:00:52]} 15. bxc3 {[%emt 0:00:06]} Bd7 $1 {[%emt 0:00:07]} 16. Bxd7 {[%emt 0:00:06]} Nxd7 {[%emt 0:00:06]} 17. Bxe7 {[%emt 0:00:04]} Rfe8 {[%emt 0:00:08]} 18. Bd8 $1 {[%emt 0:00:06]} Rxe4+ {[%emt 0:02:05]} 19. Ne2 {[%emt 0:02:08]} Ne3 $146 {[%emt 0:01:00]} (19... Nc5 $11) ({Predecessor:} 19... Nc5 20. h3 Nh6 21. Rb1 Rc8 22. Kf2 f5 23. Rb5 b6 24. Rxc5 bxc5 25. Rb1 Nf7 {½-½ Polishchuk,A (2317)-Poulos,G (2245) W-ch WS/M/838 email 2022}) 20. Kd2 {[%emt 0:07:57]} ({White should play} 20. Kf2 $16 {Hoping for Ng3.} Nc5 21. h3) 20... Nc4+ {[%emt 0:00:21]} (20... Nxg2 $6 21. Rhb1 Nb6 22. Rb4 $16) 21. Kc2 {[%emt 0:00:30]} Rxe2+ {[%emt 0:04:38]} (21... Rc8 {simplifies} 22. Rae1 Ne3+ 23. Kb1 Nd5) 22. Kd3 {[%emt 0:00:08]} Re6 {[%emt 0:00:24]} (22... Rf2 $11 {remains equal.} 23. Kxc4 Rxf4+ 24. Kb3 Nc5+ 25. Kb2 (25. Ka3 Rc4 $11) 25... Rc8 (25... Rf2+ 26. Ka3 $14)) 23. Kxc4 $16 {[%emt 0:01:16]} Rc6+ {[%emt 0:00:34]} 24. Kd5 $1 {[%emt 0:00:47]} Nb6+ {[%emt 0:02:47]} (24... Rxc3 $2 25. Kd4 Rc6 26. Rac1 (26. Rhc1 Rd6+ 27. Ke3 Nb6 $16) 26... Rd6+ 27. Ke3 $16) 25. Kd4 {[%emt 0:02:30]} Rc8 {[%emt 0:00:11]} (25... Rc4+ $2 26. Kd3 $18) 26. Rab1 {[%emt 0:02:08]} Rd6+ {[%emt 0:03:00]} 27. Ke4 {[%emt 0:00:12]} Na4 {[%emt 0:02:40]} 28. Kf3 {[%emt 0:02:55]} (28. Rxb7 $2 Nc5+ (28... Nxc3+ $2 29. Kf3 $18) 29. Ke3 Nxb7 $19) 28... Nc5 {[%emt 0:04:20]} 29. Rhe1 {[%emt 0:00:34]} Re6 {[%emt 0:00:33]} (29... h5 $16 {might work better.} 30. a4 b6 31. Re8+ Kh7) 30. Rxe6 $18 {[%emt 0:04:55]} Nxe6 {[%emt 0:00:05]} 31. Rxb7 {[%emt 0:00:10]} Nxd8 {[%emt 0:00:04]} 32. cxd8=Q+ {[%emt 0:00:10]} Rxd8 {[%emt 0:00:02]} 33. Ke2 {[%emt 0:08:34]} ({Less strong is} 33. Rxa7 Rd3+ 34. Ke2 Rxc3 $11) 33... Rc8 {[%emt 0:00:59]} (33... a6 $16 34. Ra7 Rd6) 34. Kd3 $18 {[%emt 0:00:08]} ({Much less strong is} 34. Rxa7 $6 Rxc3 35. Kd2 Rc5 $16) 34... Rd8+ {[%emt 0:00:08]} 35. Kc2 {[%emt 0:00:10]} Re8 {[%emt 0:01:03]} 36. c4 {[%emt 0:00:26]} (36. Rxa7 Re2+ 37. Kd3 Rxg2 $18) 36... Kf8 $2 {[%emt 0:08:17]} (36... a5 37. c5 Kg7) 37. Rxa7 $18 {[%emt 0:13:51]} Re2+ {[%emt 0:00:17]} 38. Kb3 {[%emt 0:00:15]} Rxg2 {[%emt 0:00:31]} 39. a4 {[%emt 0:00:42]} Rxh2 {[%emt 0:00:16]} 40. a5 {[%emt 0:00:00]} Rh1 {[%emt 0:00:00]} 41. a6 {[%emt 0:08:49]} Kg7 {[%emt 0:01:08]} 42. Rd7 {[%emt 0:05:34]} Rb1+ {[%emt 0:13:11]} 43. Ka2 {[%emt 0:02:16]} Rb8 {[%emt 0:07:03]} 44. a7 {[%emt 0:00:28]} Ra8 {[%emt 0:00:02]} 45. Kb3 {[%emt 0:00:07]} h5 {[%emt 0:00:05]} 46. Kb4 {[%emt 0:00:21]} 1-0

[Event "5th Shenzhen Longgang Masters 2024"]
[Site "Shengzhen"]
[Date "2024.03.06"]
[Round "6.2"]
[White "Erigaisi Arjun"]
[Black "Artemiev, Vladislav"]
[Result "1/2-1/2"]
[ECO "C78"]
[WhiteElo "2738"]
[BlackElo "2711"]
[Annotator "TA"]
[PlyCount "60"]
[EventDate "2024.02.28"]
[EventType "tourn"]
[EventCountry "CHN"]
[SourceTitle "playchess.com"]
[Source "ChessBase"]
[SourceQuality "1"]
[TimeControl "40/5400+30:1800+30"]

{[%evp 16,60,35,29,35,43,38,41,33,39,30,22,37,49,40,42,43,48,64,5,9,6,4,5,8,8,8,8,8,4,4,0,0,0,0,0,0,0,0,0,0,0,0,0,0,0,0]} 1. e4 {[%emt 0:00:11]} e5 {[%emt 0:00:18]} 2. Nf3 {[%emt 0:00:06]} Nc6 {[%emt 0:00:19]} 3. Bb5 {[%emt 0:00:06]} a6 {[%emt 0:00:45]} 4. Ba4 {[%emt 0:00:06]} Nf6 {[%emt 0:00:17]} 5. O-O {[%emt 0:00:24]} b5 {[%emt 0:01:03]} 6. Bb3 {[%emt 0:00:07]} Bb7 {[%emt 0:00:24]} 7. d3 {[%emt 0:00:24]} Bc5 {[%emt 0:01:27]} 8. a4 {[%emt 0:00:13]} O-O {[%emt 0:07:59]} 9. Bg5 {[%emt 0:00:12]} h6 {[%emt 0:01:51]} 10. Bh4 {[%emt 0:00:18]} Be7 {[%emt 0:12:16]} 11. axb5 {[%emt 0:08:37]} axb5 {[%emt 0:00:28] White is slightly better.} 12. Rxa8 {[%emt 0:00:07]} Bxa8 {[%emt 0:05:03]} 13. Na3 {[%emt 0:05:47]} Bxa3 {[%emt 0:27:42]} 14. bxa3 {[%emt 0:00:14][%cal Bb2a3,Ba3a4][%mdl 32]} Qe7 {[%emt 0:00:55]} 15. Qd2 {[%emt 0:16:40]} Qd6 {[%emt 0:10:33]} 16. a4 {[%emt 0:04:41]} b4 {[%emt 0:07:27]} 17. Rb1 {[%emt 0:06:46] White is more active.} (17. Ra1 $14) 17... Nh5 $11 {[%emt 0:07:43] The position is equal.} 18. Bd5 {[%emt 0:03:58]} Nf4 {[%emt 0:00:53]} 19. Bxc6 {[%emt 0:12:32]} Bxc6 {[%emt 0:00:07]} 20. Bg3 {[%emt 0:00:08][%cal Of3e5,Bh4g3,Bg3f4,Bf4c1][%mdl 32]} Bxa4 {[%emt 0:01:53] [#]} 21. Nxe5 $1 {[%emt 0:00:25]} Qxe5 {[%emt 0:00:12]} 22. Bxf4 {[%emt 0:00:06]} Qc3 {[%emt 0:00:16]} 23. Rxb4 {[%emt 0:00:46]} (23. Qxc3 {simplifies} bxc3 24. Rc1 d6 25. f3) 23... Qa1+ {[%emt 0:00:57]} (23... Qxd2 {simplifies} 24. Bxd2 Bxc2 25. Rd4 Ra8) 24. Qc1 {[%emt 0:00:05]} Qxc1+ {[%emt 0:00:08]} 25. Bxc1 {[%emt 0:00:04]} Bxc2 {[%emt 0:00:13] KRB-KRB} 26. Rc4 {[%emt 0:00:05][%csl LRc2,LRc7]} Bxd3 {[%emt 0:00:08]} 27. Rxc7 {[%emt 0:00:05]} Bxe4 {[%emt 0:00:08]} 28. Rxd7 {[%emt 0:00:07]} Bf5 {[%emt 0:00:21]} 29. Rc7 {[%emt 0:00:09]} Rc8 {[%emt 0:00:21]} 30. Rxc8+ {[%emt 0:00:06]} Bxc8 {[%emt 0:00:05] Weighted Error Value: White=0.05 (flawless) /Black=0.02 (flawless) .  Mistake:       	White=1     	---        OK:         	White=14    	Black=10     Best:        	White=1     	Black=1} 1/2-1/2

[Event "5th Shenzhen Longgang Masters 2024"]
[Site "Shengzhen"]
[Date "2024.03.06"]
[Round "6.3"]
[White "Bu, Xiangzhi"]
[Black "Yu, Yangyi"]
[Result "1/2-1/2"]
[ECO "D05"]
[WhiteElo "2671"]
[BlackElo "2720"]
[Annotator "TA"]
[PlyCount "64"]
[EventDate "2024.02.28"]
[EventType "tourn"]
[EventCountry "CHN"]
[SourceTitle "playchess.com"]
[Source "ChessBase"]
[SourceQuality "1"]
[TimeControl "40/5400+30:1800+30"]

{[%evp 14,64,4,0,0,0,0,0,0,0,0,0,0,0,0,0,0,0,23,13,15,19,18,17,59,64,63,58,55,54,47,39,24,0,0,0,0,0,0,0,0,0,0,0,0,0,0,0,0,0,0,0,0]} 1. Nf3 {[%emt 0:00:03]} c5 {[%emt 0:00:16]} 2. c3 {[%emt 0:00:15]} Nf6 {[%emt 0:02:56]} 3. d4 {[%emt 0:00:06]} e6 {[%emt 0:01:00]} 4. e3 {[%emt 0:08:01]} b6 {[%emt 0:06:17]} 5. Nbd2 {[%emt 0:01:01]} Bb7 {[%emt 0:00:42]} 6. Bd3 {[%emt 0:00:29]} d5 {[%emt 0:00:40]} 7. O-O {[%emt 0:01:55]} Be7 {[%emt 0:04:22]} 8. Qe2 {[%emt 0:12:30]} Nc6 {[%emt 0:09:17]} 9. b3 {[%emt 0:04:09]} O-O {[%emt 0:00:43]} 10. Bb2 {[%emt 0:00:02]} a5 {[%emt 0:00:38]} 11. a4 {[%emt 0:02:20]} Rc8 {[%emt 0:04:51]} 12. Rac1 {[%emt 0:02:00]} Bd6 {[%emt 0:04:50]} 13. Rfd1 {[%emt 0:08:23]} Qe7 {[%emt 0:08:01]} 14. e4 {[%emt 0:05:14]} dxe4 {[%emt 0:05:58]} 15. Nxe4 {[%emt 0:00:19]} cxd4 {[%emt 0:05:56]} 16. Nxd6 {[%emt 0:02:27]} Qxd6 {[%emt 0:01:06]} 17. Bb5 {[%emt 0:01:10]} e5 {[%emt 0:05:41]} 18. Bxc6 {[%emt 0:05:03]} Qxc6 {[%emt 0:04:02]} (18... Rxc6 {simplifies} 19. Qxe5 Qxe5 20. Nxe5 Re6) 19. cxd4 {[%emt 0:00:58]} (19. Nxe5 $2 Qxg2#) 19... Qe6 {[%emt 0:00:07]} 20. Rxc8 {[%emt 0:00:35]} ({Not} 20. Nxe5 Qxb3 21. Qb5 Bd5 $15) 20... Rxc8 {[%emt 0:00:25]} 21. dxe5 {[%emt 0:00:08]} Nd5 $1 {[%emt 0:00:57]} 22. Qd2 {[%emt 0:05:33]} h6 {[%emt 0:02:45]} 23. Nd4 {[%emt 0:02:23]} Qxe5 {[%emt 0:02:37] The position is equal.} 24. Nc6 {[%emt 0:00:22]} Qe6 {[%emt 0:00:53]} 25. Qxd5 {[%emt 0:00:07]} Qxc6 {[%emt 0:00:23]} 26. Qxc6 {[%emt 0:00:04]} Bxc6 $11 {[%emt 0:00:11][%mdl 4096] Endgame. KRB-KRB} 27. f3 {[%emt 0:00:35]} b5 {[%emt 0:00:39]} 28. Rc1 {[%emt 0:00:48]} bxa4 {[%emt 0:00:07]} 29. bxa4 {[%emt 0:00:02]} Bd7 {[%emt 0:00:08]} 30. Rxc8+ {[%emt 0:00:04]} Bxc8 {[%emt 0:00:03]} 31. Bc3 {[%emt 0:00:02]} Bd7 {[%emt 0:00:07]} 32. Bxa5 {[%emt 0:00:02]} Bxa4 {[%emt 0:00:07] Weighted Error Value: White=0.02 (flawless) /Black=0.04 (flawless) .  Inaccurate:     	---       	Black=1      OK:         	White=13    	Black=12     Strong:       	---       	Black=1} 1/2-1/2

[Event "5th Shenzhen Longgang Masters 2024"]
[Site "Shengzhen"]
[Date "2024.03.06"]
[Round "6.4"]
[White "Giri, Anish"]
[Black "Ma, Qun"]
[Result "1/2-1/2"]
[ECO "C54"]
[WhiteElo "2749"]
[BlackElo "2651"]
[Annotator "TA"]
[PlyCount "66"]
[EventDate "2024.02.28"]
[EventType "tourn"]
[EventCountry "CHN"]
[SourceTitle "playchess.com"]
[Source "ChessBase"]
[SourceQuality "1"]
[TimeControl "40/5400+30:1800+30"]

{[%evp 11,66,10,16,16,19,15,22,14,19,20,18,22,15,31,22,-21,21,23,22,20,22,20,21,27,31,0,0,0,14,20,21,8,25,0,6,0,0,0,7,-9,12,0,0,0,0,0,0,0,0,0,0,0,0,0,0,0,0]} 1. e4 {[%emt 0:00:02]} e5 {[%emt 0:00:15]} 2. Nf3 {[%emt 0:00:05]} Nc6 {[%emt 0:00:04]} 3. Bc4 {[%emt 0:00:14]} Bc5 {[%emt 0:00:11]} 4. O-O {[%emt 0:00:34]} Nf6 {[%emt 0:00:16]} 5. d3 {[%emt 0:00:04]} d6 {[%emt 0:00:29]} 6. c3 {[%emt 0:00:06]} a6 {[%emt 0:00:10]} 7. a4 {[%emt 0:00:23]} Ba7 {[%emt 0:00:07]} 8. Re1 {[%emt 0:00:39]} O-O {[%emt 0:00:39][%cal Ob7b5]} 9. h3 {[%emt 0:00:07]} h6 {[%emt 0:00:15]} 10. Nbd2 {[%emt 0:00:05][%cal Bb1d2,Bd2f1,Bf1g3,Bg3f5][%mdl 32]} Re8 {[%emt 0:00:07][%cal Bf8e8,Be8e6,Be6f6][%mdl 32]} 11. Nf1 {[%emt 0:00:31]} Be6 {[%emt 0:00:39]} 12. Bxe6 {[%emt 0:00:04]} Rxe6 {[%emt 0:00:06]} 13. c4 {[%emt 0:00:05]} Nd4 {[%emt 0:05:05]} 14. a5 {[%emt 0:00:55]} Nd7 {[%emt 0:03:42][%cal Bf6d7,Bd7c5,Bc5e6,Be6d4][%mdl 32]} 15. Ng3 {[%emt 0:14:39]} Nxf3+ {[%emt 0:22:07]} 16. Qxf3 {[%emt 0:00:27]} Nc5 {[%emt 0:00:03]} 17. Qd1 {[%emt 0:02:00]} Rf6 {[%emt 0:02:52][%cal Oc5d3] [#] aiming for ...Nxd3!} 18. Rf1 {[%emt 0:02:30]} Ne6 {[%emt 0:00:24]} 19. b4 {[%emt 0:02:03]} Kh7 {[%emt 0:08:36]} 20. Nf5 {[%emt 0:11:08]} Nd4 {[%emt 0:01:25]} 21. Ne3 {[%emt 0:01:07]} Qd7 {[%emt 0:13:57]} 22. Kh1 {[%emt 0:08:23]} Rf8 {[%emt 0:06:03] The position is equal.} 23. Ra2 {[%emt 0:00:47]} c6 {[%emt 0:03:01]} 24. Bd2 {[%emt 0:09:31]} Ne6 {[%emt 0:08:10]} 25. Nf5 {[%emt 0:06:12]} g6 {[%emt 0:07:37]} 26. Nxh6 {[%emt 0:02:38]} Rxf2 {[%emt 0:00:05]} 27. Rxf2 {[%emt 0:03:19]} Bxf2 {[%emt 0:00:03]} 28. Qg4 {[%emt 0:10:32] [#] And now Bg5 would win.} (28. Ng4 $5 Bh4 $8 29. Bh6 $11) 28... Bd4 {[%emt 0:02:53]} 29. Nf5 {[%emt 0:01:36]} gxf5 {[%emt 0:02:29]} 30. Qxf5+ {[%emt 0:04:24]} Kg7 {[%emt 0:02:54] Threatens to win with ...Qd8.} (30... Kh8 $5 31. Qh5+ $8 Kg8 32. Qg4+ Kh8 33. Qh5+ Kg8 (33... Kg7 34. Qg4+ Kh7 35. Qh5+ Kg8 36. Qg4+ Kh8 37. Qh4+ Kg8 38. Qg4+ $11) 34. Qg4+ Kh8 35. Qh4+ Kg8 36. Qg4+ $11) 31. Qg4+ {[%emt 0:00:14]} Kh7 {[%emt 0:00:26] ...Qe7 would now be deadly.} 32. Qh5+ {[%emt 0:00:26]} Kg8 {[%emt 0:00:18][%cal Of7f5] ...f5! is the strong threat.} 33. Qg4+ {[%emt 0:00:01]} Kh7 {[%emt 0:00:06] A balanced but interesting game.   Weighted Error Value: White=0.06 (flawless) /Black=0.04 (flawless) .  Inaccurate:     	White=2     	Black=1      OK:         	White=10    	Black=11     Best:        	White=1     	Black=2} 1/2-1/2